[Event "*** Titled Tuesday 3|2 Blitz"]
[Site "Chess.com"]
[Date "2017.03.07"]
[Round "10"]
[White "Hunninn"]
[Black "Dlugy"]
[Result "1-0"]
[WhiteElo "2442"]
[BlackElo "2653"]
[TimeControl "180+2"]
[EndTime "15:20:56 PST"]
[Termination "Hunninn won by checkmate"]

1. d4 {[%clk 0:03:02]} 1... d5 {[%clk 0:03:00.4]} 2. Bf4 {[%clk 0:03:00.9]} 2...
Bf5 {[%clk 0:02:58.9]} 3. e3 {[%clk 0:03:00.8]} 3... e6 {[%clk 0:02:59.9]} 4.
Nf3 {[%clk 0:02:57.9]} 4... Nf6 {[%clk 0:02:59.4]} 5. Bd3 {[%clk 0:02:56.3]}
5... Bg6 {[%clk 0:02:54.4]} 6. O-O {[%clk 0:02:56.2]} 6... Bd6 {[%clk
0:02:54.6]} 7. Bg3 {[%clk 0:02:56.6]} 7... O-O {[%clk 0:02:53.4]} 8. c4 {[%clk
0:02:57]} 8... Bxd3 {[%clk 0:02:46.1]} 9. Qxd3 {[%clk 0:02:57.2]} 9... Bxg3
{[%clk 0:02:48]} 10. hxg3 {[%clk 0:02:57]} 10... c6 {[%clk 0:02:41.8]} 11. Nc3
{[%clk 0:02:57.8]} 11... Nbd7 {[%clk 0:02:42.6]} 12. e4 {[%clk 0:02:58.6]} 12...
dxe4 {[%clk 0:02:41.7]} 13. Nxe4 {[%clk 0:02:57.5]} 13... Nxe4 {[%clk
0:02:43.6]} 14. Qxe4 {[%clk 0:02:59]} 14... Qa5 {[%clk 0:02:44]} 15. a3 {[%clk
0:02:55.9]} 15... Rad8 {[%clk 0:02:42.6]} 16. b4 {[%clk 0:02:56.1]} 16... Qa6
{[%clk 0:02:38.8]} 17. Rfc1 {[%clk 0:02:44.8]} 17... h6 {[%clk 0:02:33]} 18. a4
{[%clk 0:02:35.6]} 18... Qb6 {[%clk 0:02:20.5]} 19. Rab1 {[%clk 0:02:23.4]}
19... Qc7 {[%clk 0:02:19.5]} 20. b5 {[%clk 0:02:21.2]} 20... c5 {[%clk
0:02:18.7]} 21. dxc5 {[%clk 0:02:13.4]} 21... Nxc5 {[%clk 0:02:19.6]} 22. Qc2
{[%clk 0:02:14.1]} 22... Rd3 {[%clk 0:02:02.6]} 23. Ne1 {[%clk 0:02:11.2]} 23...
Ra3 {[%clk 0:01:33.5]} 24. Ra1 {[%clk 0:02:12]} 24... Rxa1 {[%clk 0:01:34.5]}
25. Rxa1 {[%clk 0:02:13.2]} 25... Rd8 {[%clk 0:01:35.9]} 26. Rd1 {[%clk
0:02:14.3]} 26... b6 {[%clk 0:01:33.7]} 27. Nd3 {[%clk 0:01:53.8]} 27... Qd6
{[%clk 0:01:24.1]} 28. Nb2 {[%clk 0:01:54.5]} 28... Qe7 {[%clk 0:01:25.3]} 29.
Nd3 {[%clk 0:01:55.6]} 29... Qd6 {[%clk 0:00:51.9]} 30. Nb2 {[%clk 0:01:56.1]}
30... Qc7 {[%clk 0:00:53.3]} 31. Nd3 {[%clk 0:01:56.7]} 31... Nb7 {[%clk
0:00:50.4]} 32. Nb4 {[%clk 0:01:49]} 32... Rxd1+ {[%clk 0:00:46.6]} 33. Qxd1
{[%clk 0:01:50]} 33... Qxc4 {[%clk 0:00:47.4]} 34. Nc6 {[%clk 0:01:51]} 34...
Nc5 {[%clk 0:00:46.9]} 35. Ne7+ {[%clk 0:01:52]} 35... Kh7 {[%clk 0:00:41.9]}
36. Qd8 {[%clk 0:01:53.4]} 36... h5 {[%clk 0:00:08.9]} 37. Qg8+ {[%clk
0:01:53.4]} 37... Kh6 {[%clk 0:00:10.3]} 38. Qh8+ {[%clk 0:01:52.9]} 38... Kg5
{[%clk 0:00:11]} 39. Qxg7# {[%clk 0:01:53.8]} 1-0

[Event "*** Titled Tuesday 3|2 Blitz"]
[Site "Chess.com"]
[Date "2017.03.07"]
[Round "10"]
[White "Outsmiter"]
[Black "peteseeger"]
[Result "0-1"]
[WhiteElo "2090"]
[BlackElo "2118"]
[TimeControl "180+2"]
[EndTime "15:21:02 PST"]
[Termination "peteseeger won by resignation"]

1. e4 {[%clk 0:03:02]} 1... e5 {[%clk 0:02:59.3]} 2. Nf3 {[%clk 0:03:02.5]} 2...
Nc6 {[%clk 0:02:58.2]} 3. Bb5 {[%clk 0:03:03.5]} 3... a6 {[%clk 0:02:58.1]} 4.
Ba4 {[%clk 0:03:04.4]} 4... Nge7 {[%clk 0:02:59]} 5. O-O {[%clk 0:03:03.3]} 5...
g6 {[%clk 0:02:58.6]} 6. c3 {[%clk 0:03:02.4]} 6... Bg7 {[%clk 0:02:59.4]} 7.
Re1 {[%clk 0:03:01.9]} 7... O-O {[%clk 0:02:59.1]} 8. d4 {[%clk 0:03:01.6]} 8...
exd4 {[%clk 0:02:59.2]} 9. cxd4 {[%clk 0:03:03.5]} 9... d6 {[%clk 0:02:59.9]}
10. h3 {[%clk 0:03:03.9]} 10... b5 {[%clk 0:02:59.3]} 11. Bc2 {[%clk 0:03:02.2]}
11... Bb7 {[%clk 0:02:56.2]} 12. Nc3 {[%clk 0:02:58.2]} 12... d5 {[%clk
0:02:51.7]} 13. e5 {[%clk 0:02:52.6]} 13... Nb4 {[%clk 0:02:34.9]} 14. Bb3
{[%clk 0:02:50.9]} 14... Qd7 {[%clk 0:02:21.2]} 15. a3 {[%clk 0:02:49.2]} 15...
Nbc6 {[%clk 0:02:21.6]} 16. Bf4 {[%clk 0:02:36.8]} 16... Rac8 {[%clk 0:02:20.6]}
17. Rc1 {[%clk 0:02:35.4]} 17... Na5 {[%clk 0:02:20.2]} 18. Ba2 {[%clk
0:02:33.6]} 18... Nc4 {[%clk 0:02:20.1]} 19. Qe2 {[%clk 0:02:29.3]} 19... c5
{[%clk 0:02:17.3]} 20. dxc5 {[%clk 0:02:27.1]} 20... Rxc5 {[%clk 0:02:17.2]} 21.
Nd4 {[%clk 0:02:28.2]} 21... Rfc8 {[%clk 0:02:14.3]} 22. b4 {[%clk 0:02:25.7]}
22... R5c7 {[%clk 0:01:52.5]} 23. e6 {[%clk 0:02:25.9]} 23... fxe6 {[%clk
0:01:51.5]} 24. Bxc7 {[%clk 0:02:25.8]} 24... Bxd4 {[%clk 0:01:50.4]} 25. Bg3
{[%clk 0:02:09.7]} 25... Nxa3 {[%clk 0:01:48.8]} 26. Be5 {[%clk 0:02:02.4]}
26... Bxe5 {[%clk 0:01:41.6]} 27. Qxe5 {[%clk 0:02:02.5]} 27... Nc4 {[%clk
0:01:42.3]} 28. Bxc4 {[%clk 0:02:02.5]} 28... Rxc4 {[%clk 0:01:41.1]} 29. Qxe6+
{[%clk 0:01:59.4]} 29... Qxe6 {[%clk 0:01:40.8]} 30. Rxe6 {[%clk 0:02:01.3]}
30... Kf7 {[%clk 0:01:41.9]} 31. Ree1 {[%clk 0:02:00.3]} 31... Rxb4 {[%clk
0:01:38.8]} 32. Ne2 {[%clk 0:01:58.2]} 32... Rc4 {[%clk 0:01:38.4]} 33. Rxc4
{[%clk 0:01:55.4]} 33... dxc4 {[%clk 0:01:37.5]} 34. Nd4 {[%clk 0:01:56]} 34...
Nd5 {[%clk 0:01:34.2]} 35. Ne6 {[%clk 0:01:54.8]} 35... b4 {[%clk 0:01:30.1]}
36. Nc5 {[%clk 0:01:55.2]} 36... Bc8 {[%clk 0:01:29]} 37. Rc1 {[%clk 0:01:40.4]}
37... Nc3 {[%clk 0:01:27.2]} 38. Kf1 {[%clk 0:01:40.2]} 38... a5 {[%clk
0:01:26.1]} 39. Ke1 {[%clk 0:01:39.1]} 39... Ke7 {[%clk 0:01:20.8]} 40. f3
{[%clk 0:01:31.4]} 40... Kd6 {[%clk 0:01:17.9]} 41. Ne4+ {[%clk 0:01:32.2]}
41... Nxe4 {[%clk 0:01:17.8]} 42. fxe4 {[%clk 0:01:34.1]} 42... c3 {[%clk
0:01:17.6]} 43. Ke2 {[%clk 0:01:34.3]} 43... Ba6+ {[%clk 0:01:16.1]} 44. Ke3
{[%clk 0:01:34.9]} 44... Kc5 {[%clk 0:01:14.4]} 45. e5 {[%clk 0:01:34.4]} 45...
Kc4 {[%clk 0:01:15.1]} 46. e6 {[%clk 0:01:34.8]} 46... b3 {[%clk 0:01:16]} 47.
e7 {[%clk 0:01:32.7]} 47... Bb5 {[%clk 0:01:16.5]} 48. Rf1 {[%clk 0:01:27.6]}
48... b2 {[%clk 0:01:15.1]} 0-1

[Event "*** Titled Tuesday 3|2 Blitz"]
[Site "Chess.com"]
[Date "2017.03.07"]
[Round "10"]
[White "spectralsoul"]
[Black "SabinaFoisor"]
[Result "1-0"]
[WhiteElo "2600"]
[BlackElo "2196"]
[TimeControl "180+2"]
[EndTime "15:21:36 PST"]
[Termination "spectralsoul won by resignation"]

1. Nf3 {[%clk 0:03:02]} 1... d5 {[%clk 0:02:53.8]} 2. c4 {[%clk 0:03:03.6]} 2...
d4 {[%clk 0:02:53.4]} 3. b4 {[%clk 0:03:02.4]} 3... Bg4 {[%clk 0:02:37]} 4. Qb3
{[%clk 0:02:56.1]} 4... Nf6 {[%clk 0:02:34.2]} 5. Bb2 {[%clk 0:02:56.9]} 5...
Bxf3 {[%clk 0:02:31.7]} 6. Qxf3 {[%clk 0:02:58.8]} 6... Nc6 {[%clk 0:02:11.2]}
7. b5 {[%clk 0:02:58.8]} 7... Nb4 {[%clk 0:02:00.4]} 8. Qb3 {[%clk 0:02:58.9]}
8... a5 {[%clk 0:00:57.3]} 9. a3 {[%clk 0:02:46.8]} 9... a4 {[%clk 0:00:55.9]}
10. Qd1 {[%clk 0:02:25.7]} 10... Nc6 {[%clk 0:00:43.4]} 11. bxc6 {[%clk
0:02:26.2]} 11... bxc6 {[%clk 0:00:44.7]} 12. e3 {[%clk 0:02:25.9]} 12... e5
{[%clk 0:00:39]} 13. exd4 {[%clk 0:02:21.9]} 13... exd4 {[%clk 0:00:40.9]} 14.
Qf3 {[%clk 0:01:59]} 14... Qd7 {[%clk 0:00:33.9]} 15. Bd3 {[%clk 0:01:57.3]}
15... Rb8 {[%clk 0:00:28.8]} 16. Ra2 {[%clk 0:01:44.7]} 16... Be7 {[%clk
0:00:26.3]} 17. O-O {[%clk 0:01:41.6]} 17... O-O {[%clk 0:00:26.7]} 18. Bc2
{[%clk 0:01:34.3]} 18... c5 {[%clk 0:00:27.9]} 19. d3 {[%clk 0:01:26.3]} 19...
Rb6 {[%clk 0:00:29.3]} 20. Nd2 {[%clk 0:01:26.1]} 20... Rfb8 {[%clk 0:00:30.6]}
21. Bc1 {[%clk 0:01:27.5]} 21... h6 {[%clk 0:00:31.4]} 22. Qd1 {[%clk 0:01:21]}
22... Qf5 {[%clk 0:00:28.3]} 23. Re1 {[%clk 0:01:19.5]} 23... Bf8 {[%clk
0:00:24.2]} 24. Ne4 {[%clk 0:01:08.8]} 24... Ng4 {[%clk 0:00:21.6]} 25. h3
{[%clk 0:01:05.6]} 25... Ne5 {[%clk 0:00:21.5]} 26. Bxa4 {[%clk 0:00:47.9]}
26... Rg6 {[%clk 0:00:22]} 27. f4 {[%clk 0:00:39.9]} 27... Nd7 {[%clk 0:00:12]}
28. g4 {[%clk 0:00:38.6]} 28... Bd6 {[%clk 0:00:06.8]} 29. Kh1 {[%clk 0:00:33]}
29... Qf6 {[%clk 0:00:05.1]} 30. Nxf6+ {[%clk 0:00:29.9]} 30... Nxf6 {[%clk
0:00:07]} 31. f5 {[%clk 0:00:31.2]} 1-0

[Event "*** Titled Tuesday 3|2 Blitz"]
[Site "Chess.com"]
[Date "2017.03.07"]
[Round "10"]
[White "Makalexa"]
[Black "arna"]
[Result "1-0"]
[WhiteElo "2155"]
[BlackElo "2247"]
[TimeControl "180+2"]
[EndTime "15:21:37 PST"]
[Termination "Makalexa won on time"]

1. e4 {[%clk 0:02:59.2]} 1... c5 {[%clk 0:02:54.6]} 2. Nf3 {[%clk 0:02:58.9]}
2... Nc6 {[%clk 0:02:55]} 3. d4 {[%clk 0:02:57.6]} 3... cxd4 {[%clk 0:02:55.1]}
4. Nxd4 {[%clk 0:02:56.4]} 4... e5 {[%clk 0:02:53.9]} 5. Nb5 {[%clk 0:02:56]}
5... d6 {[%clk 0:02:54.3]} 6. N1c3 {[%clk 0:02:56.2]} 6... a6 {[%clk 0:02:48.9]}
7. Na3 {[%clk 0:02:56.9]} 7... Be7 {[%clk 0:02:50.6]} 8. Nd5 {[%clk 0:02:53.6]}
8... Nf6 {[%clk 0:02:47]} 9. Bd3 {[%clk 0:02:48.1]} 9... Nxd5 {[%clk 0:02:01.1]}
10. exd5 {[%clk 0:02:47.7]} 10... Nb4 {[%clk 0:02:03]} 11. O-O {[%clk
0:02:43.5]} 11... Nxd3 {[%clk 0:01:53.6]} 12. Qxd3 {[%clk 0:02:42.4]} 12... f5
{[%clk 0:01:53.8]} 13. f3 {[%clk 0:02:41.8]} 13... b5 {[%clk 0:01:46.7]} 14. c4
{[%clk 0:02:39.2]} 14... Rb8 {[%clk 0:01:36.4]} 15. Be3 {[%clk 0:02:35.4]} 15...
O-O {[%clk 0:01:31.8]} 16. Rac1 {[%clk 0:02:29.5]} 16... Bd7 {[%clk 0:01:28.7]}
17. Kh1 {[%clk 0:02:25.4]} 17... b4 {[%clk 0:01:16.9]} 18. Nc2 {[%clk
0:02:24.7]} 18... a5 {[%clk 0:01:18.6]} 19. b3 {[%clk 0:02:24]} 19... Qe8 {[%clk
0:00:51]} 20. f4 {[%clk 0:02:23]} 20... e4 {[%clk 0:00:36]} 21. Qe2 {[%clk
0:02:19]} 21... Ra8 {[%clk 0:00:28.2]} 22. Bd4 {[%clk 0:02:16.6]} 22... Bf6
{[%clk 0:00:23.4]} 23. Qe3 {[%clk 0:02:07.5]} 23... Qb8 {[%clk 0:00:20.1]} 24.
Bxf6 {[%clk 0:02:04.3]} 24... Rxf6 {[%clk 0:00:20.8]} 25. Nd4 {[%clk 0:02:03]}
25... Qa7 {[%clk 0:00:15.9]} 26. Rfe1 {[%clk 0:01:58.8]} 26... Rh6 {[%clk
0:00:14.4]} 27. h3 {[%clk 0:01:58.7]} 27... Rg6 {[%clk 0:00:13.1]} 28. Kh2
{[%clk 0:01:50.3]} 28... Qc5 {[%clk 0:00:12.8]} 29. Nc2 {[%clk 0:01:45.4]} 29...
Qxe3 {[%clk 0:00:12.6]} 30. Nxe3 {[%clk 0:01:46.1]} 30... a4 {[%clk 0:00:14.2]}
31. c5 {[%clk 0:01:26.9]} 31... dxc5 {[%clk 0:00:12.4]} 32. Rxc5 {[%clk
0:01:28.8]} 32... axb3 {[%clk 0:00:10.4]} 33. axb3 {[%clk 0:01:30.7]} 33... Ra2
{[%clk 0:00:10.9]} 34. Rc4 {[%clk 0:01:25.4]} 34... Rb6 {[%clk 0:00:10]} 35. Kg3
{[%clk 0:01:21.6]} 35... Ra3 {[%clk 0:00:05.7]} 36. Rb1 {[%clk 0:01:21.3]} 36...
Rb7 {[%clk 0:00:06.3]} 37. Nc2 {[%clk 0:01:17.5]} 37... Ra2 {[%clk 0:00:03.7]}
38. Nxb4 {[%clk 0:01:18.3]} 38... Ra3 {[%clk 0:00:03.1]} 39. Kh2 {[%clk
0:01:16.5]} 1-0

[Event "*** Titled Tuesday 3|2 Blitz"]
[Site "Chess.com"]
[Date "2017.03.07"]
[Round "10"]
[White "MateusViageiro"]
[Black "Schoenbrunn"]
[Result "1-0"]
[WhiteElo "2222"]
[BlackElo "1859"]
[TimeControl "180+2"]
[EndTime "15:21:41 PST"]
[Termination "MateusViageiro won on time"]

1. e4 {[%clk 0:03:01.9]} 1... e6 {[%clk 0:02:58.1]} 2. Qe2 {[%clk 0:03:00.3]}
2... c5 {[%clk 0:01:37.7]} 3. g3 {[%clk 0:02:59.3]} 3... Nc6 {[%clk 0:01:25.6]}
4. Bg2 {[%clk 0:03:00.2]} 4... d6 {[%clk 0:01:25.7]} 5. Nf3 {[%clk 0:03:00.6]}
5... g6 {[%clk 0:01:26.3]} 6. O-O {[%clk 0:03:01.3]} 6... Bg7 {[%clk 0:01:27.3]}
7. c3 {[%clk 0:03:01.6]} 7... Nge7 {[%clk 0:01:24.8]} 8. d3 {[%clk 0:02:59.6]}
8... O-O {[%clk 0:01:25.2]} 9. Na3 {[%clk 0:03:00.1]} 9... Rb8 {[%clk
0:01:24.5]} 10. Bf4 {[%clk 0:02:57.3]} 10... b5 {[%clk 0:01:18.9]} 11. e5 {[%clk
0:02:57.5]} 11... d5 {[%clk 0:01:15.5]} 12. d4 {[%clk 0:02:56]} 12... c4 {[%clk
0:01:13]} 13. Nc2 {[%clk 0:02:54.6]} 13... b4 {[%clk 0:01:12.4]} 14. Qd2 {[%clk
0:02:47.6]} 14... f6 {[%clk 0:01:01]} 15. exf6 {[%clk 0:02:46.1]} 15... Bxf6
{[%clk 0:01:00.9]} 16. Bxb8 {[%clk 0:02:46.1]} 16... Nxb8 {[%clk 0:01:00.2]} 17.
Nxb4 {[%clk 0:02:47.2]} 17... a5 {[%clk 0:00:55.3]} 18. Nc2 {[%clk 0:02:47.9]}
18... Nbc6 {[%clk 0:00:55.9]} 19. Rfe1 {[%clk 0:02:48]} 19... Qb6 {[%clk
0:00:55.6]} 20. Ne3 {[%clk 0:02:46.4]} 20... a4 {[%clk 0:00:47.4]} 21. a3 {[%clk
0:02:46.5]} 21... Na5 {[%clk 0:00:47]} 22. Qc2 {[%clk 0:02:45.6]} 22... Nb3
{[%clk 0:00:47.5]} 23. Rab1 {[%clk 0:02:46]} 23... h6 {[%clk 0:00:39.4]} 24. Ng4
{[%clk 0:02:46.2]} 24... Bg7 {[%clk 0:00:39]} 25. Nge5 {[%clk 0:02:42.7]} 25...
g5 {[%clk 0:00:34.9]} 26. Nd2 {[%clk 0:02:40.6]} 26... Nf5 {[%clk 0:00:30.5]}
27. Nxb3 {[%clk 0:02:40]} 27... axb3 {[%clk 0:00:30.8]} 28. Qe2 {[%clk
0:02:39.8]} 28... Nxd4 {[%clk 0:00:19.6]} 29. cxd4 {[%clk 0:02:39.6]} 29... Qxd4
{[%clk 0:00:20.7]} 30. Ng6 {[%clk 0:02:39.2]} 30... Rf7 {[%clk 0:00:18.8]} 31.
Ne5 {[%clk 0:02:22]} 31... Rf5 {[%clk 0:00:13.8]} 32. Nf3 {[%clk 0:02:20.7]}
32... Qc5 {[%clk 0:00:12.6]} 33. Qe3 {[%clk 0:02:18.3]} 33... d4 {[%clk
0:00:12.3]} 34. Qe4 {[%clk 0:02:19]} 34... Bd7 {[%clk 0:00:10.6]} 35. Qg4 {[%clk
0:02:03.2]} 35... e5 {[%clk 0:00:10.5]} 36. Qe4 {[%clk 0:02:02]} 36... c3 {[%clk
0:00:07.9]} 37. bxc3 {[%clk 0:01:58.9]} 37... dxc3 {[%clk 0:00:08.8]} 38. Rxb3
{[%clk 0:01:59.4]} 38... Bc6 {[%clk 0:00:09.2]} 39. Qxf5 {[%clk 0:01:57.2]}
39... c2 {[%clk 0:00:09.6]} 40. Rc1 {[%clk 0:01:53.6]} 40... e4 {[%clk
0:00:08.3]} 41. Qxc5 {[%clk 0:01:47]} 1-0

[Event "*** Titled Tuesday 3|2 Blitz"]
[Site "Chess.com"]
[Date "2017.03.07"]
[Round "10"]
[White "GMMelik"]
[Black "Fandorine"]
[Result "0-1"]
[WhiteElo "2451"]
[BlackElo "2648"]
[TimeControl "180+2"]
[EndTime "15:21:50 PST"]
[Termination "Fandorine won by resignation"]

1. e4 {[%clk 0:03:02]} 1... c5 {[%clk 0:03:00.8]} 2. Nf3 {[%clk 0:03:01.9]} 2...
e6 {[%clk 0:03:01.3]} 3. d4 {[%clk 0:03:01.2]} 3... cxd4 {[%clk 0:03:02.7]} 4.
Nxd4 {[%clk 0:03:03.1]} 4... Nc6 {[%clk 0:03:04.3]} 5. Nc3 {[%clk 0:03:03.9]}
5... Qc7 {[%clk 0:03:05.6]} 6. Be2 {[%clk 0:03:01.3]} 6... a6 {[%clk 0:03:06.1]}
7. O-O {[%clk 0:03:01.7]} 7... Nf6 {[%clk 0:03:07.8]} 8. Be3 {[%clk 0:02:57.3]}
8... Be7 {[%clk 0:03:09]} 9. f4 {[%clk 0:02:55.2]} 9... d6 {[%clk 0:03:10.2]}
10. Qe1 {[%clk 0:02:55]} 10... O-O {[%clk 0:03:11.3]} 11. Qg3 {[%clk 0:02:46.8]}
11... Nxd4 {[%clk 0:03:12.3]} 12. Bxd4 {[%clk 0:02:47.6]} 12... b5 {[%clk
0:03:14]} 13. a3 {[%clk 0:02:48]} 13... Bb7 {[%clk 0:03:12]} 14. Bd3 {[%clk
0:02:47.9]} 14... e5 {[%clk 0:03:05.3]} 15. fxe5 {[%clk 0:02:28.4]} 15... Nh5
{[%clk 0:03:06.3]} 16. Qh3 {[%clk 0:01:37.6]} 16... dxe5 {[%clk 0:03:07.2]} 17.
Be3 {[%clk 0:01:37.9]} 17... Bc5 {[%clk 0:03:01.3]} 18. Nd5 {[%clk 0:01:31.7]}
18... Bxe3+ {[%clk 0:03:00.6]} 19. Qxe3 {[%clk 0:01:29.7]} 19... Qd6 {[%clk
0:02:34.4]} 20. Rf5 {[%clk 0:01:20.9]} 20... g6 {[%clk 0:02:06.8]} 21. Rxh5
{[%clk 0:01:17.8]} 21... gxh5 {[%clk 0:02:00.7]} 22. Qg5+ {[%clk 0:01:16.7]}
22... Kh8 {[%clk 0:02:01.6]} 23. Nf6 {[%clk 0:01:18]} 23... Rg8 {[%clk
0:01:37.8]} 24. Qh6 {[%clk 0:00:43.2]} 24... Rg7 {[%clk 0:01:21.3]} 25. Rf1
{[%clk 0:00:43.1]} 25... Rc8 {[%clk 0:00:29.1]} 26. Rf5 {[%clk 0:00:36.1]} 26...
Qd4+ {[%clk 0:00:26.7]} 27. Kh1 {[%clk 0:00:28.5]} 27... Qxb2 {[%clk 0:00:22.9]}
28. h3 {[%clk 0:00:27.2]} 28... Rxc2 {[%clk 0:00:20.8]} 29. Bxc2 {[%clk
0:00:19.4]} 29... Qxc2 {[%clk 0:00:22.1]} 30. g3 {[%clk 0:00:05.7]} 30... Bxe4+
{[%clk 0:00:20.5]} 0-1

[Event "*** Titled Tuesday 3|2 Blitz"]
[Site "Chess.com"]
[Date "2017.03.07"]
[Round "10"]
[White "iturrizaga"]
[Black "SavelijTartakover"]
[Result "0-1"]
[WhiteElo "2624"]
[BlackElo "2597"]
[TimeControl "180+2"]
[EndTime "15:22:16 PST"]
[Termination "SavelijTartakover won by resignation"]

1. Nf3 {[%clk 0:03:02]} 1... Nf6 {[%clk 0:02:59.1]} 2. c4 {[%clk 0:03:03.9]}
2... g6 {[%clk 0:03:00]} 3. g3 {[%clk 0:03:05.8]} 3... Bg7 {[%clk 0:03:01.4]} 4.
Bg2 {[%clk 0:03:07.7]} 4... O-O {[%clk 0:03:02.9]} 5. O-O {[%clk 0:03:09.6]}
5... d6 {[%clk 0:03:02.8]} 6. d4 {[%clk 0:03:10]} 6... Nc6 {[%clk 0:03:03.4]} 7.
Nc3 {[%clk 0:03:11.9]} 7... Bg4 {[%clk 0:03:04.6]} 8. d5 {[%clk 0:03:12.6]} 8...
Na5 {[%clk 0:03:04.7]} 9. Qd3 {[%clk 0:03:13.8]} 9... c5 {[%clk 0:03:04.6]} 10.
Nd2 {[%clk 0:03:11.1]} 10... a6 {[%clk 0:03:03.4]} 11. a4 {[%clk 0:03:09]} 11...
Bd7 {[%clk 0:02:56.6]} 12. b3 {[%clk 0:03:08.2]} 12... Ng4 {[%clk 0:02:49.7]}
13. Bb2 {[%clk 0:03:04.1]} 13... b5 {[%clk 0:02:39.4]} 14. axb5 {[%clk
0:02:50.3]} 14... axb5 {[%clk 0:02:38.7]} 15. cxb5 {[%clk 0:02:39.5]} 15... Qb6
{[%clk 0:02:38]} 16. Nc4 {[%clk 0:02:37.1]} 16... Qd8 {[%clk 0:02:17.8]} 17. h3
{[%clk 0:02:15.4]} 17... Ne5 {[%clk 0:02:07.2]} 18. Nxe5 {[%clk 0:02:05.9]}
18... Bxe5 {[%clk 0:02:09.1]} 19. Ra3 {[%clk 0:02:04.3]} 19... Rb8 {[%clk
0:02:01.6]} 20. Rfa1 {[%clk 0:01:54]} 20... Bxb5 {[%clk 0:01:28.5]} 21. Nxb5
{[%clk 0:01:55.9]} 21... Bxb2 {[%clk 0:01:28.9]} 22. Rxa5 {[%clk 0:01:56.2]}
22... Bxa1 {[%clk 0:01:29.8]} 23. Rxa1 {[%clk 0:01:58.1]} 23... Qb6 {[%clk
0:01:30.5]} 24. Nc3 {[%clk 0:01:15.6]} 24... Qxb3 {[%clk 0:01:28.9]} 25. Qe3
{[%clk 0:01:10.9]} 25... Qc4 {[%clk 0:01:21.1]} 26. Ne4 {[%clk 0:01:08.1]} 26...
Rb2 {[%clk 0:01:15.6]} 27. Bf3 {[%clk 0:01:02.4]} 27... Rfb8 {[%clk 0:01:15.6]}
28. Kh2 {[%clk 0:00:53.6]} 28... Qd4 {[%clk 0:00:46.5]} 29. Qh6 {[%clk
0:00:44.2]} 29... Rxe2 {[%clk 0:00:35.8]} 30. Bxe2 {[%clk 0:00:28.7]} 30... Qxa1
{[%clk 0:00:36.4]} 31. Ng5 {[%clk 0:00:29.4]} 31... Qg7 {[%clk 0:00:37]} 32. Qh4
{[%clk 0:00:31.1]} 32... Rb2 {[%clk 0:00:34.6]} 33. Bf3 {[%clk 0:00:07.5]} 33...
Rxf2+ {[%clk 0:00:33]} 34. Bg2 {[%clk 0:00:09]} 34... Ra2 {[%clk 0:00:22.2]} 35.
Ne4 {[%clk 0:00:06.5]} 35... Qb2 {[%clk 0:00:20]} 0-1

[Event "*** Titled Tuesday 3|2 Blitz"]
[Site "Chess.com"]
[Date "2017.03.07"]
[Round "10"]
[White "gkchesstiger"]
[Black "SwiftyMcBishop"]
[Result "1-0"]
[WhiteElo "2634"]
[BlackElo "2225"]
[TimeControl "180+2"]
[EndTime "15:22:35 PST"]
[Termination "gkchesstiger won by resignation"]

1. Nf3 {[%clk 0:03:02]} 1... d5 {[%clk 0:02:43.8]} 2. g3 {[%clk 0:03:02.6]} 2...
c6 {[%clk 0:02:43]} 3. Bg2 {[%clk 0:03:03.6]} 3... Nf6 {[%clk 0:02:31.7]} 4. b3
{[%clk 0:03:04.5]} 4... g6 {[%clk 0:02:29.1]} 5. Bb2 {[%clk 0:03:05.4]} 5... Bg7
{[%clk 0:02:29.7]} 6. O-O {[%clk 0:03:06.8]} 6... O-O {[%clk 0:02:27.3]} 7. c4
{[%clk 0:03:07.7]} 7... dxc4 {[%clk 0:02:22.4]} 8. bxc4 {[%clk 0:03:08.2]} 8...
c5 {[%clk 0:02:23.7]} 9. d3 {[%clk 0:03:03.7]} 9... Nc6 {[%clk 0:02:17.3]} 10.
Nc3 {[%clk 0:03:03.9]} 10... Bg4 {[%clk 0:02:15.5]} 11. h3 {[%clk 0:03:03.8]}
11... Bd7 {[%clk 0:02:13.7]} 12. Rb1 {[%clk 0:03:03.2]} 12... b6 {[%clk
0:02:03.1]} 13. Nd5 {[%clk 0:03:01.7]} 13... Re8 {[%clk 0:02:00.8]} 14. Nxf6+
{[%clk 0:03:01.2]} 14... exf6 {[%clk 0:01:58.3]} 15. e3 {[%clk 0:02:59]} 15...
f5 {[%clk 0:01:55.6]} 16. Bxg7 {[%clk 0:02:58.8]} 16... Kxg7 {[%clk 0:01:57.5]}
17. d4 {[%clk 0:03:00]} 17... Rc8 {[%clk 0:01:55.8]} 18. dxc5 {[%clk 0:02:51.4]}
18... bxc5 {[%clk 0:01:55.6]} 19. Rb7 {[%clk 0:02:52.4]} 19... Be6 {[%clk
0:01:50.4]} 20. Qa4 {[%clk 0:02:42.4]} 20... Re7 {[%clk 0:01:42]} 21. Rb5 {[%clk
0:02:38.6]} 21... Nb4 {[%clk 0:01:30.2]} 22. a3 {[%clk 0:02:30.6]} 22... Bxc4
{[%clk 0:00:59]} 23. axb4 {[%clk 0:02:29.8]} 23... Bxb5 {[%clk 0:01:00.2]} 24.
Qxb5 {[%clk 0:02:30.1]} 24... cxb4 {[%clk 0:00:59.6]} 25. Qxb4 {[%clk
0:02:30.9]} 25... Rb8 {[%clk 0:00:59.1]} 26. Qc3+ {[%clk 0:02:30.9]} 26... Kg8
{[%clk 0:00:59.1]} 27. Nd4 {[%clk 0:02:31.9]} 27... Rc7 {[%clk 0:00:56.6]} 28.
Nc6 {[%clk 0:02:29.6]} 28... Qd6 {[%clk 0:00:49.1]} 29. Rc1 {[%clk 0:02:29.3]}
29... Rb6 {[%clk 0:00:45.7]} 30. g4 {[%clk 0:02:27.1]} 30... fxg4 {[%clk
0:00:42.3]} 31. hxg4 {[%clk 0:02:27.4]} 31... a5 {[%clk 0:00:32.6]} 32. Qxa5
{[%clk 0:02:26.1]} 32... Rb2 {[%clk 0:00:19.1]} 33. Qa8+ {[%clk 0:02:21.4]}
33... Kg7 {[%clk 0:00:19.6]} 34. g5 {[%clk 0:02:02.8]} 34... Qd2 {[%clk
0:00:18.2]} 35. Rf1 {[%clk 0:02:02.1]} 35... Rc2 {[%clk 0:00:19.4]} 36. Qe8
{[%clk 0:01:56.9]} 36... Qd6 {[%clk 0:00:13.2]} 37. Nd4 {[%clk 0:01:53.2]} 37...
Rc1 {[%clk 0:00:14.3]} 38. Qe4 {[%clk 0:01:32.3]} 38... Rxf1+ {[%clk 0:00:13.9]}
39. Bxf1 {[%clk 0:01:32.9]} 39... Rc1 {[%clk 0:00:14.5]} 40. Kg2 {[%clk
0:01:29]} 40... Qc5 {[%clk 0:00:12.9]} 41. f4 {[%clk 0:01:18.5]} 41... Qa5
{[%clk 0:00:11.2]} 42. Qe5+ {[%clk 0:01:07.6]} 42... Qxe5 {[%clk 0:00:11.9]} 43.
fxe5 {[%clk 0:01:08.6]} 43... Rc5 {[%clk 0:00:13.2]} 44. Nf3 {[%clk 0:01:09.3]}
44... Kf8 {[%clk 0:00:13.2]} 45. Kg3 {[%clk 0:01:09.7]} 45... Ke7 {[%clk
0:00:14.4]} 46. Kf4 {[%clk 0:01:10.2]} 46... Rc4+ {[%clk 0:00:15.8]} 47. Bxc4
{[%clk 0:01:02.8]} 1-0